fUST/lending_fUST_20241126
["ID","MTS","AMOUNT","RATE_DAILY","PERIOD"]
[343334065,1732578546428,-500.0,0.00029568,2]
[343334066,1732578546449,-500.0,0.00029568,2]
[343334067,1732578546470,-500.0,0.00029568,2]
[343334068,1732578546491,-165.785,0.00029568,23]
[343334069,1732578546513,-500.0,0.00029568,2]
[343334070,1732578546534,-500.0,0.00029568,2]
[343334071,1732578546556,-500.0,0.00029568,2]
[343334072,1732578546582,-485.50654437,0.00029568,2]
[343334073,1732578546604,-500.0,0.00029568,2]
[343334074,1732578546626,-500.0,0.00029568,2]
[343334075,1732578546650,-500.0,0.00029568,2]
[343334076,1732578546671,-500.0,0.00029568,2]
[343334077,1732578546693,-500.0,0.00029568,2]
[343334078,1732578546714,-500.0,0.00029568,2]
[343334079,1732578546735,-500.0,0.00029568,2]
[343334080,1732578546756,-500.0,0.00029568,2]
[343334081,1732578546776,-500.0,0.00029568,2]
[343334082,1732578546797,-500.0,0.00029568,2]
[343334083,1732578546818,-500.0,0.00029568,2]
[343334084,1732578546842,-500.0,0.00029568,2]
[343334085,1732578546863,-500.0,0.00029568,2]
[343334086,1732578546884,-584.21,0.00029568,2]
[343334087,1732578546904,-500.0,0.00029568,2]
[343334088,1732578546924,-500.0,0.00029571,2]
[343334089,1732578546944,-500.0,0.00029571,2]
[343334090,1732578546964,-500.0,0.00029571,2]
[343334091,1732578546984,-181.7023194,0.00029571,2]
[343334092,1732578547005,-41619.73129281,0.00029572,2]
[343334093,1732578547025,-2011.94331762,0.00029576,2]
[343334094,1732578547047,-450.40470633,0.00029576,2]
[343334095,1732578547068,-834.29,0.0002959,3]
[343334096,1732578547093,-229.61,0.0002959,10]
[343334097,1732578547114,-393.17,0.0002959,10]
[343334098,1732578547136,-12815.76649973,0.000296,5]
[343334099,1732578555272,-327.64,0.0002959,10]
[343334100,1732578555294,-149959.2285923,0.000296,5]
[343334101,1732578555315,-1289.64192814,0.00029663,2]
[343334102,1732578555335,-468.35773501,0.00029664,2]
[343334103,1732578555364,-500.0,0.00029667,2]
[343334104,1732578555385,-177.74,0.00029671,2]
[343334105,1732578555406,-500.0,0.00029671,2]
[343334106,1732578555426,-500.0,0.00029671,2]
[343334107,1732578555447,-500.0,0.00029671,2]
[343334108,1732578555468,-500.0,0.00029671,2]
[343334109,1732578555489,-500.0,0.00029671,2]
[343334110,1732578555511,-500.0,0.00029671,2]
[343334111,1732578555532,-500.0,0.00029671,2]
[343334112,1732578555553,-500.0,0.00029671,2]
[343334113,1732578555574,-500.0,0.00029671,2]
[343334114,1732578555599,-500.0,0.00029671,2]
[343334115,1732578555620,-478.50207845,0.00029671,2]
[343334116,1732578555643,-151.0,0.00029672,7]
[343334117,1732578555665,-151.23676,0.00029672,7]
[343334118,1732578555686,-151.0,0.00029672,7]
[343334119,1732578555706,-152.742451,0.00029672,7]
[343334120,1732578555727,-151.0,0.00029672,7]
[343334121,1732578555748,-151.0,0.00029672,7]
[343334122,1732578555769,-151.0,0.00029672,7]
[343334123,1732578555790,-260.238351,0.00029672,7]
[343334124,1732578555814,-193.938465,0.00029672,7]
[343334125,1732578555840,-193.938465,0.00029672,7]
[343334126,1732578555868,-193.938465,0.00029672,7]
[343334127,1732578555890,-193.938465,0.00029672,7]
[343334128,1732578556012,-193.938465,0.00029672,7]
[343334129,1732578556035,-193.938465,0.00029672,7]
[343334130,1732578556056,-193.938465,0.00029672,7]
[343334131,1732578556078,-193.938465,0.00029672,7]
[343334132,1732578556106,-193.938465,0.00029672,7]
[343334133,1732578556127,-193.938465,0.00029672,7]
[343334134,1732578556148,-193.938465,0.00029672,7]
[343334135,1732578556173,-193.938465,0.00029672,7]
[343334136,1732578556196,-193.938465,0.00029672,7]
[343334137,1732578556219,-193.938465,0.00029672,7]
[343334138,1732578556242,-193.938465,0.00029672,7]
[343334139,1732578556263,-193.938465,0.00029672,7]
[343334140,1732578556284,-193.938465,0.00029672,7]
[343334141,1732578556305,-193.938465,0.00029672,7]
[343334142,1732578556327,-193.938465,0.00029672,7]
[343334143,1732578556354,-193.938465,0.00029672,7]
[343334144,1732578556376,-151.0,0.00029672,7]
[343334145,1732578556397,-151.0,0.00029672,7]
[343334146,1732578556420,-151.0,0.00029672,7]
[343334147,1732578556442,-151.0,0.00029672,7]
[343334148,1732578556463,-151.0,0.00029672,7]
[343334149,1732578556485,-151.0,0.00029672,7]
[343334150,1732578556507,-254.35804,0.00029672,7]
[343334151,1732578556529,-256.091303,0.00029673,7]
[343334152,1732578556550,-151.0,0.00029673,7]
[343334153,1732578556572,-151.0,0.00029673,7]
[343334154,1732578556601,-151.0,0.00029673,7]
[343334155,1732578556623,-178.344152,0.00029673,7]
[343334156,1732578556646,-1581.151241,0.00029673,7]
[343334157,1732578556674,-1581.151241,0.00029673,7]
[343334158,1732578556699,-1581.151241,0.00029673,7]
[343334159,1732578556723,-1581.151241,0.00029673,7]
[343334160,1732578556745,-1581.151241,0.00029673,7]
[343334161,1732578556768,-1581.151241,0.00029673,7]
[343334162,1732578556790,-1581.151241,0.00029673,7]
[343334163,1732578556812,-1581.151241,0.00029673,7]
[343334164,1732578556833,-1581.151241,0.00029673,7]
[343334165,1732578556860,-1581.151241,0.00029673,7]
[343334166,1732578556880,-1581.151241,0.00029673,7]
[343334167,1732578556901,-1581.151241,0.00029673,7]
[343334168,1732578556922,-1581.151241,0.00029673,7]
[343334169,1732578556942,-1581.151241,0.00029673,7]
[343334170,1732578556962,-1581.151241,0.00029673,7]
[343334171,1732578556982,-1581.151241,0.00029673,7]
[343334172,1732578557003,-1581.151241,0.00029673,7]
[343334173,1732578557023,-1581.151241,0.00029673,7]
[343334174,1732578557042,-1581.151241,0.00029673,7]
[343334175,1732578557062,-1581.151241,0.00029673,7]
[343334176,1732578557083,-151.0,0.00029673,7]
[343334177,1732578557109,-151.0,0.00029673,7]
[343334178,1732578557130,-151.0,0.00029673,7]
[343334179,1732578557151,-151.0,0.00029673,7]
[343334180,1732578557172,-151.0,0.00029673,7]
[343334181,1732578557197,-151.0,0.00029673,7]
[343334182,1732578557220,-151.0,0.00029673,7]
[343334183,1732578557247,-151.0,0.00029673,7]
[343334184,1732578557272,-151.0,0.00029673,7]
[343334185,1732578557298,-151.0,0.00029673,7]
[343334186,1732578557320,-151.0,0.00029673,7]
[343334187,1732578557347,-151.0,0.00029673,7]
[343334188,1732578557372,-151.0,0.00029673,7]
[343334189,1732578557396,-151.0,0.00029673,7]
[343334190,1732578557420,-151.0,0.00029673,7]
[343334191,1732578557445,-151.0,0.00029673,7]
[343334192,1732578557469,-151.0,0.00029673,7]
[343334193,1732578557493,-200.251522,0.00029673,7]
[343334194,1732578557518,-342.899832,0.00029676,7]
[343334195,1732578557543,-342.899832,0.00029676,7]
[343334196,1732578557569,-342.899832,0.00029676,7]
[343334197,1732578557600,-77.87760726,0.00029676,7]
[343334198,1732578557640,-273.03,0.0002959,10]
[343334199,1732578557667,-265.02222474,0.00029676,7]
[343334200,1732578557692,-342.899832,0.00029676,7]
[343334201,1732578557717,-342.899832,0.00029676,7]
[343334202,1732578557741,-342.899832,0.00029676,7]
[343334203,1732578557765,-342.899832,0.00029676,7]
[343334204,1732578557789,-342.899832,0.00029676,7]
[343334205,1732578557812,-342.899832,0.00029676,7]
[343334206,1732578557836,-342.899832,0.00029676,7]
[343334207,1732578557867,-342.899832,0.00029676,7]
[343334208,1732578557890,-342.899832,0.00029676,7]
[343334209,1732578557914,-342.899832,0.00029676,7]
[343334210,1732578557938,-342.899832,0.00029676,7]
[343334211,1732578557961,-151.0,0.00029676,7]
[343334212,1732578557985,-342.899832,0.00029676,7]
[343334213,1732578558010,-342.899832,0.00029676,7]
[343334214,1732578558038,-151.0,0.00029676,7]
[343334215,1732578558063,-342.899832,0.00029676,7]
[343334216,1732578558091,-151.0,0.00029676,7]
[343334217,1732578558115,-342.899832,0.00029676,7]
[343334218,1732578558137,-342.899832,0.00029676,7]
[343334219,1732578558158,-151.0,0.00029676,7]
[343334220,1732578558184,-151.0,0.00029676,7]
[343334221,1732578558208,-151.0,0.00029676,7]
[343334222,1732578558233,-181.641274,0.00029676,7]
[343334223,1732578558258,-768.396032,0.00029676,7]
[343334224,1732578558282,-768.396032,0.00029676,7]
[343334225,1732578558304,-768.396032,0.00029676,7]
[343334226,1732578558327,-768.396032,0.00029676,7]
[343334227,1732578558355,-768.396032,0.00029676,7]
[343334228,1732578558377,-768.396032,0.00029676,7]
[343334229,1732578558402,-768.396032,0.00029676,7]
[343334230,1732578558425,-768.396032,0.00029676,7]
[343334231,1732578558448,-768.396032,0.00029676,7]
[343334232,1732578558471,-768.396032,0.00029676,7]
[343334233,1732578558494,-768.396032,0.00029676,7]
[343334234,1732578558518,-768.396032,0.00029676,7]
[343334235,1732578558542,-768.396032,0.00029676,7]
[343334236,1732578558678,-768.396032,0.00029676,7]
[343334237,1732578558701,-768.396032,0.00029676,7]
[343334238,1732578558725,-768.396032,0.00029676,7]
[343334239,1732578558748,-768.396032,0.00029676,7]
[343334240,1732578558771,-768.396032,0.00029676,7]
[343334241,1732578558792,-768.396032,0.00029676,7]
[343334242,1732578558814,-768.396024,0.00029676,7]
[343334243,1732578558836,-317.774264,0.00029676,7]
[343334244,1732578558868,-317.774264,0.00029676,7]
[343334245,1732578558890,-317.774264,0.00029676,7]
[343334246,1732578558917,-317.774263,0.00029676,7]
[343334247,1732578558939,-151.0,0.00029676,7]
[343334248,1732578558961,-151.0,0.00029676,7]
[343334249,1732578558984,-151.207447,0.00029676,7]
[343334250,1732578559006,-263.483793,0.00029676,7]
[343334251,1732578559027,-501.427697,0.00029676,7]
[343334252,1732578559052,-501.427697,0.00029676,7]
[343334253,1732578559077,-501.427697,0.00029676,7]
[343334254,1732578559108,-501.427697,0.00029676,7]
[343334255,1732578559132,-501.427697,0.00029676,7]
[343334256,1732578559154,-501.427697,0.00029676,7]
[343334257,1732578559182,-501.427697,0.00029676,7]
[343334258,1732578559205,-501.427697,0.00029676,7]
[343334259,1732578559228,-501.427697,0.00029676,7]
[343334260,1732578559250,-501.427697,0.00029676,7]
[343334261,1732578559276,-501.427697,0.00029676,7]
[343334262,1732578559298,-501.427697,0.00029676,7]
[343334263,1732578559320,-501.427697,0.00029676,7]
[343334264,1732578559349,-501.427697,0.00029676,7]
[343334265,1732578559371,-501.427697,0.00029676,7]
[343334266,1732578559393,-501.427697,0.00029676,7]
[343334267,1732578559415,-501.427697,0.00029676,7]
[343334268,1732578559437,-501.427697,0.00029676,7]
[343334269,1732578559461,-501.427697,0.00029676,7]
[343334270,1732578559484,-501.427693,0.00029676,7]
[343334271,1732578559506,-151.0,0.00029676,7]
[343334272,1732578559527,-151.0,0.00029676,7]
[343334273,1732578559550,-151.0,0.00029676,7]
[343334274,1732578559571,-151.0,0.00029676,7]
[343334275,1732578559596,-151.0,0.00029676,7]
[343334276,1732578559619,-151.0,0.00029676,7]
[343334277,1732578559639,-151.0,0.00029676,7]
[343334278,1732578559662,-151.0,0.00029676,7]
[343334279,1732578559684,-151.0,0.00029676,7]
[343334280,1732578559707,-151.0,0.00029676,7]
[343334281,1732578559729,-151.0,0.00029676,7]
[343334282,1732578559750,-151.0,0.00029676,7]
[343334283,1732578559774,-151.0,0.00029676,7]
[343334284,1732578559795,-151.0,0.00029676,7]
[343334285,1732578559817,-151.0,0.00029676,7]
[343334286,1732578559839,-151.0,0.00029676,7]
[343334287,1732578559862,-157.100424,0.00029676,7]
[343334288,1732578559883,-151.0,0.00029676,7]
[343334289,1732578559905,-151.0,0.00029676,7]
[343334290,1732578559928,-151.0,0.00029676,7]
[343334291,1732578559951,-151.0,0.00029676,7]
[343334292,1732578559973,-151.0,0.00029676,7]
[343334293,1732578559995,-151.0,0.00029676,7]
[343334294,1732578560016,-151.0,0.00029676,7]
[343334295,1732578560037,-151.0,0.00029676,7]
[343334296,1732578560057,-151.0,0.00029676,7]
[343334297,1732578560078,-151.0,0.00029676,7]
[343334298,1732578560105,-258.55938,0.00029676,7]
[343334299,1732578560127,-162.44416,0.00029676,7]
[343334300,1732578560148,-162.44416,0.00029676,7]
[343334301,1732578560170,-162.44416,0.00029676,7]
[343334302,1732578560195,-162.44416,0.00029676,7]
[343334303,1732578560217,-162.44416,0.00029676,7]
[343334304,1732578560238,-162.44416,0.00029676,7]
[343334305,1732578560261,-162.44416,0.00029676,7]
[343334306,1732578560283,-162.44416,0.00029676,7]
[343334307,1732578560304,-162.44416,0.00029676,7]
[343334308,1732578560326,-162.44416,0.00029676,7]
[343334309,1732578560354,-162.44416,0.00029676,7]
[343334310,1732578560376,-162.44416,0.00029676,7]
[343334311,1732578560398,-162.44416,0.00029676,7]
[343334312,1732578560420,-162.44416,0.00029676,7]
[343334313,1732578560443,-162.44416,0.00029676,7]
[343334314,1732578560467,-162.44416,0.00029676,7]
[343334315,1732578560488,-162.44416,0.00029676,7]
[343334316,1732578560510,-162.44416,0.00029676,7]
[343334317,1732578560531,-162.44416,0.00029676,7]
[343334318,1732578560553,-162.44416,0.00029676,7]
[343334319,1732578560575,-151.0,0.00029676,7]
[343334320,1732578560605,-151.0,0.00029676,7]
[343334321,1732578560628,-151.0,0.00029676,7]
[343334322,1732578560650,-151.0,0.00029676,7]
[343334323,1732578560673,-151.0,0.00029676,7]
[343334324,1732578560694,-151.0,0.00029676,7]
[343334325,1732578560715,-151.0,0.00029676,7]
[343334326,1732578560738,-151.0,0.00029676,7]
[343334327,1732578560761,-845.660195,0.00029676,7]
[343334328,1732578560783,-845.660195,0.00029676,7]
[343334329,1732578560805,-845.660195,0.00029676,7]
[343334330,1732578560827,-845.660195,0.00029676,7]
[343334331,1732578560854,-845.660195,0.00029676,7]
[343334332,1732578560875,-845.660195,0.00029676,7]
[343334333,1732578560897,-845.660195,0.00029676,7]
[343334334,1732578560918,-845.660195,0.00029676,7]
[343334335,1732578560939,-845.660195,0.00029676,7]
[343334336,1732578560961,-845.660195,0.00029676,7]
[343334337,1732578560984,-845.660195,0.00029676,7]
[343334338,1732578561007,-845.660195,0.00029676,7]
[343334339,1732578561028,-845.660195,0.00029676,7]
[343334340,1732578561049,-845.660195,0.00029676,7]
[343334341,1732578561070,-845.660195,0.00029676,7]
[343334342,1732578561094,-845.660195,0.00029676,7]
[343334343,1732578561115,-845.660195,0.00029676,7]
[343334344,1732578561138,-845.660195,0.00029676,7]
[343334345,1732578561159,-845.660195,0.00029676,7]
[343334346,1732578561184,-845.660199,0.00029676,7]
[343334347,1732578561207,-151.0,0.00029676,7]
[343334348,1732578561229,-151.0,0.00029676,7]
[343334349,1732578561250,-151.0,0.00029676,7]
[343334350,1732578561273,-151.0,0.00029676,7]
[343334351,1732578561294,-151.0,0.00029676,7]
[343334352,1732578561316,-151.0,0.00029676,7]
[343334353,1732578561340,-151.0,0.00029676,7]
[343334354,1732578561361,-229.932791,0.00029676,7]
[343334355,1732578561383,-151.0,0.00029676,7]
[343334356,1732578561404,-229.932791,0.00029676,7]
[343334357,1732578561426,-151.0,0.00029676,7]
[343334358,1732578561447,-229.932791,0.00029676,7]
[343334359,1732578561469,-151.0,0.00029676,7]
[343334360,1732578561492,-20.2880812,0.00029676,7]
[343334361,1732578561654,-1074.70160678,0.00029663,2]
[343334362,1732578561678,-209.6447098,0.00029676,7]
[343334363,1732578561701,-151.0,0.00029676,7]
[343334364,1732578561724,-229.932791,0.00029676,7]
[343334365,1732578561747,-151.0,0.00029676,7]
[343334366,1732578561771,-229.932791,0.00029676,7]
[343334367,1732578561794,-151.0,0.00029676,7]
[343334368,1732578561818,-229.932791,0.00029676,7]
[343334369,1732578561846,-202.093098,0.00029676,7]
[343334370,1732578561869,-229.932791,0.00029676,7]
[343334371,1732578561891,-229.932791,0.00029676,7]
[343334372,1732578561913,-229.932791,0.00029676,7]
[343334373,1732578561935,-229.932791,0.00029676,7]
[343334374,1732578561958,-229.932791,0.00029676,7]
[343334375,1732578561980,-229.932791,0.00029676,7]
[343334376,1732578562001,-229.932791,0.00029676,7]
[343334377,1732578562023,-229.932791,0.00029676,7]
[343334378,1732578562044,-229.932791,0.00029676,7]
[343334379,1732578562067,-229.932791,0.00029676,7]
[343334380,1732578562096,-229.932791,0.00029676,7]
[343334381,1732578562119,-229.932791,0.00029676,7]
[343334382,1732578562141,-229.932783,0.00029676,7]
[343334383,1732578562163,-151.0,0.00029676,7]
[343334384,1732578562188,-151.0,0.00029676,7]
[343334385,1732578562209,-151.0,0.00029676,7]
[343334386,1732578562234,-151.0,0.00029676,7]
[343334387,1732578562255,-151.0,0.00029676,7]
[343334388,1732578562276,-151.0,0.00029676,7]
[343334389,1732578562298,-151.0,0.00029676,7]
[343334390,1732578562319,-151.0,0.00029676,7]
[343334391,1732578562346,-251.201,0.0003,2]
[343334392,1732578562368,-159.0,0.0003,2]
[343334393,1732578562389,-178.059674,0.00030137,120]
[343334394,1732578562410,-339.02900082,0.00030298,14]
[343334395,1732578567165,-227.53,0.00029666,10]
[343334396,1732578567190,-895.58467232,0.0002967,2]
[343334397,1732578567215,-265.0,0.0003,2]
[343334398,1732578567237,-4660.97099918,0.00030298,14]
[343334399,1732578567258,-150.0,0.00030926,2]
[343334400,1732578567279,-3071.37555184,0.000314,7]
[343334401,1732578567299,-420.0,0.00031841,2]
[343334402,1732578567318,-251.201,0.00032851,2]
[343334403,1732578567337,-265.0,0.00033,2]
[343334404,1732578567361,-265.0,0.00033,2]
[343334405,1732578567381,-3071.37555184,0.000334,7]
[343334406,1732578567402,-150.0,0.00033926,2]
[343334407,1732578567422,-587.0,0.00034334,2]
[343334408,1732578572231,254.219411,0.00029676,7]
[343334409,1732578572668,254.219411,0.00029676,7]
[343334410,1732578573084,254.219411,0.00029676,7]
[343334411,1732578573545,254.219411,0.00029676,7]
[343334412,1732578574106,254.219411,0.00029676,7]
[343334413,1732578574562,254.219411,0.00029676,7]
[343334414,1732578575141,254.219411,0.00029676,7]
[343334415,1732578575668,254.219411,0.00029676,7]
[343334416,1732578576745,254.219411,0.00029676,7]
[343334417,1732578576772,738.71316315,0.00034333,2]
[343334450,1732578632795,-465.505,0.000295,2]
[343334451,1732578632807,-11334.74681203,0.000295,2]
[343334452,1732578632816,-189.61,0.00029666,10]
[343334453,1732578632825,-42.43634827,0.00029666,10]
[343334454,1732578632836,-115.56365173,0.00029666,10]
[343334455,1732578632845,-254.219411,0.00029676,7]
[343334456,1732578632854,-254.219411,0.00029676,7]
[343334457,1732578632863,-254.219411,0.00029676,7]
[343334458,1732578632872,-254.219411,0.00029676,7]
[343334459,1732578632881,-254.219411,0.00029676,7]
[343334460,1732578632890,-254.219411,0.00029676,7]
[343334461,1732578632899,-254.219411,0.00029676,7]
[343334462,1732578632908,-254.219411,0.00029676,7]
[343334463,1732578632917,-254.219411,0.00029676,7]
[343334464,1732578632926,-254.219411,0.00029676,7]
[343334465,1732578632935,-254.219415,0.00029676,7]
[343334466,1732578632944,-152.143134,0.00029676,7]
[343334467,1732578632956,-25041.37183427,0.00029676,10]
[343334492,1732578638758,-33400.38631982,0.00029676,10]
[343334501,1732578638835,-5753.85911781,0.00029676,10]
[343334503,1732578638846,-558.81001428,0.00029676,10]
[343334524,1732578639039,-2030008.1069543,0.00029676,10]
[343334692,1732578640735,-93019.86918533,0.00029676,10]
[343335003,1732578643695,-790.05,0.00029666,10]
[343335005,1732578643704,-40329.55475654,0.00029676,10]
[343335271,1732578646634,228.46620968,0.00029406,120]
[343335273,1732578646647,-36.57474432,0.00029406,120]
[343335275,1732578646656,-18543.42525568,0.00029676,10]
[343335277,1732578646668,-16773.2929,0.00029676,10]
[343336062,1732578654404,265.040954,0.00028751,120]
[343337347,1732578921193,1317.0,0.00022,2]
[343337352,1732579277613,265.040954,0.00013973,2]
[343337355,1732579550122,-165.312149,0.00028108,2]
[343337356,1732579550142,-19.33496682,0.00028306,2]
[343337359,1732579630099,-160.9122889,0.00028303,2]
[343337360,1732579630121,-260.05801218,0.00028306,2]
[343337361,1732579630142,-209.573373,0.00028308,2]
[343337362,1732579630163,-150.0,0.00028393,2]
[343337363,1732579630183,-300.0,0.00029399,2]
[343337364,1732579630204,-1260.6989628,0.000294,7]
[343337365,1732579630225,-1260.6989628,0.000294,7]
[343337366,1732579630250,-1260.6989628,0.000294,7]
[343337367,1732579630270,-1260.6989628,0.000294,7]
[343337368,1732579630291,-1260.6989628,0.000294,7]
[343337369,1732579630311,-1260.6989628,0.000294,7]
[343337370,1732579630409,-1260.6989628,0.000294,7]
[343337371,1732579630430,-1260.6989628,0.000294,7]
[343337372,1732579630450,-1260.6989628,0.000294,7]
[343337373,1732579630469,-1260.6979628,0.000294,7]
[343337374,1732579630489,-174.08500659,0.000295,2]
[343337375,1732579630521,-600.53960844,0.0002956,2]
[343337376,1732579630544,-231.18653136,0.00029567,2]
[343337377,1732579630565,-1013.42,0.000296,2]
[343337378,1732579630586,-232.78582186,0.00029659,2]
[343337379,1732579630607,-625.02507035,0.00029659,2]
[343337380,1732579630628,-500.0,0.0002966,2]
[343337381,1732579630648,-500.0,0.0002966,2]
[343337382,1732579630669,-152.585381,0.0002966,7]
[343337383,1732579630692,-151.0,0.0002966,7]
[343337384,1732579630712,-151.0,0.0002966,7]
[343337385,1732579630733,-151.0,0.0002966,7]
[343337386,1732579630758,-167.257166,0.0002966,7]
[343337387,1732579630780,-255.40313091,0.0002966,2]
[343337388,1732579630802,-500.0,0.0002966,2]
[343337389,1732579630823,-500.0,0.0002966,2]
[343337390,1732579630844,-500.0,0.0002966,2]
[343337391,1732579630869,-501.1217324,0.00029675,2]
[343337392,1732579630890,-500.0,0.00029675,2]
[343337393,1732579630912,-500.0,0.00029675,2]
[343337394,1732579630932,-500.0,0.00029675,2]
[343337395,1732579630956,-500.0,0.00029675,2]
[343337396,1732579630977,-500.0,0.00029675,2]
[343337397,1732579631002,-500.0,0.00029675,2]
[343337398,1732579631022,-500.0,0.00029675,2]
[343337399,1732579631043,-165.785,0.00029676,23]
[343337400,1732579631064,-209.573373,0.00029678,2]
[343337401,1732579631084,-151.0,0.0003,120]
[343337402,1732579631105,-151.0,0.0003,120]
[343337403,1732579631125,-188.4,0.0003,2]
[343337404,1732579631145,-220.0,0.0003,2]
[343337405,1732579631164,-163.45433939,0.00030137,2]
[343337406,1732579631185,-5000.0,0.00030298,14]
[343337407,1732579631204,-150.0,0.00031393,2]
[343337408,1732579631224,-420.0,0.00031705,2]
[343337409,1732579631248,-1723.95088592,0.00032298,14]
[343337410,1732579633176,-3276.04911408,0.00032298,14]
[343337411,1732579633202,-377.47078331,0.00032876,2]
[343337412,1732579633225,-482.10488633,0.00032876,2]
[343337413,1732579633249,-494.26089829,0.00032876,2]
[343337414,1732579633276,-500.0,0.00032876,2]
[343337415,1732579633300,-487.18482611,0.00032876,2]
[343337416,1732579633324,-543.16691768,0.00032876,2]
[343337417,1732579633349,-500.0,0.00032876,2]
[343337418,1732579633372,-458.39183082,0.00032876,2]
[343337419,1732579633398,-220.0,0.00033,2]
[343337420,1732579633423,-220.0,0.00033,2]
[343337421,1732579633449,-151.0,0.00033342,120]
[343337422,1732579633475,-280.174789,0.00034,30]
[343337423,1732579633508,-587.0,0.00034192,2]
[343337424,1732579633538,-5000.0,0.00034298,14]
[343337425,1732579633565,-623.20169974,0.00034333,2]
[343337426,1732579633590,-150.0,0.00034393,2]
[343337427,1732579633617,-153.0,0.00034603,30]
[343337428,1732579633641,-153.0,0.00034603,30]
[343337429,1732579633667,-200.7968787,0.00034603,30]
[343337430,1732579633690,-344.0,0.000348,3]
[343337431,1732579633715,-150.0,0.00035,69]
[343337432,1732579633737,-151.0,0.00035014,120]
[343337433,1732579633768,-3071.37555184,0.000354,30]
[343337434,1732579633797,-1000.0,0.00035616,120]
[343337435,1732579633825,-2.56301776,0.00035649,120]
[343337436,1732579636107,-1893.71630195,0.000294,7]
[343337438,1732579757147,-1177.66024984,0.000294,7]
[343337439,1732579757168,-212.7413024,0.000294,30]
[343337440,1732579757189,-177.18,0.00029651,10]
[343337441,1732579757210,-885.9,0.00029651,10]
[343337442,1732579757231,-151.0,0.0002966,7]
[343337443,1732579757260,-151.0,0.0002966,7]
[343337444,1732579757285,-213.881276,0.0002966,7]
[343337445,1732579757307,-500.0,0.0002966,2]
[343337446,1732579757327,-500.0,0.0002966,2]
[343337447,1732579757353,-500.0,0.0002966,2]
[343337448,1732579757374,-500.0,0.0002966,2]
[343337449,1732579757395,-493.43965502,0.0002966,2]
[343337450,1732579757415,-500.0,0.0002966,2]
[343337451,1732579757441,-151.0,0.00029661,7]
[343337452,1732579757462,-151.0,0.00029661,7]
[343337453,1732579757482,-151.0,0.00029661,7]
[343337454,1732579757501,-151.0,0.00029661,7]
[343337455,1732579757522,-151.0,0.00029661,7]
[343337456,1732579757545,-151.0,0.00029661,7]
[343337457,1732579757565,-181.641274,0.00029661,7]
[343337458,1732579757589,-692.277727,0.00029661,7]
[343337459,1732579757611,-692.277727,0.00029661,7]
[343337460,1732579757634,-692.277727,0.00029661,7]
[343337461,1732579757655,-692.277727,0.00029661,7]
[343337462,1732579757676,-692.277727,0.00029661,7]
[343337463,1732579757703,-498.57690539,0.00029661,7]
[343337464,1732579768296,-193.70082161,0.00029661,7]
[343337465,1732579768316,-692.277727,0.00029661,7]
[343337466,1732579768335,-692.277727,0.00029661,7]
[343337467,1732579768357,-692.277727,0.00029661,7]
[343337468,1732579768376,-692.277727,0.00029661,7]
[343337469,1732579768395,-692.277727,0.00029661,7]
[343337470,1732579768415,-692.277727,0.00029661,7]
[343337471,1732579768434,-692.277727,0.00029661,7]
[343337472,1732579768454,-692.277727,0.00029661,7]